bitfinex/quotes_BTCUSD_20250218
["timestamp","ask_amount","ask_price","bid_price","bid_amount"]
[1739869453815,1.09835502,95505.0,95504.0,0.00047324]
[1739869454020,1.09835502,95505.0,95504.0,0.00347324]
[1739869454227,0.82527105,95505.0,95504.0,0.00347324]
[1739869454423,0.157099,95481.0,95480.0,0.049]
[1739869454802,0.157104,95478.0,95477.0,0.32600695]
[1739869455384,0.916349,95478.0,95477.0,0.32600695]
[1739869455610,0.157104,95478.0,95477.0,0.32600695]
[1739869455811,2.477805,95478.0,95477.0,0.32600695]
[1739869456012,2.156087,95478.0,95477.0,0.32600695]
[1739869456349,1.9587,95478.0,95477.0,0.32600695]
[1739869456960,1.368211,95478.0,95477.0,0.33200695]
[1739869457161,0.757822,95478.0,95477.0,0.33200695]
[1739869457387,0.625122,95478.0,95477.0,0.33200695]
[1739869457623,0.67389,95478.0,95477.0,0.33200695]
[1739869457825,0.67389,95478.0,95477.0,0.33800695]
[1739869457826,0.67489,95478.0,95477.0,0.33800695]
[1739869458335,0.67389,95478.0,95477.0,0.33200695]
[1739869458469,0.67389,95478.0,95477.0,0.32600695]
[1739869458693,0.67389,95478.0,95477.0,0.33200695]
[1739869458916,0.67389,95478.0,95477.0,0.006]
[1739869459140,0.157105,95477.0,95476.0,0.0003402]
[1739869459312,1.419903,95477.0,95476.0,0.0003402]
[1739869459491,0.852306,95477.0,95476.0,0.0003402]
[1739869460105,1.01871837,95477.0,95476.0,0.0003402]
[1739869460625,1.01871837,95477.0,95476.0,0.0033402]
[1739869461448,1.01871837,95477.0,95476.0,0.0063402]
[1739869461636,1.01871837,95477.0,95476.0,0.0033402]
[1739869462042,1.01871837,95477.0,95476.0,0.0063402]
[1739869462630,1.002306,95477.0,95476.0,0.0063402]
[1739869465826,0.87379,95477.0,95476.0,0.0063402]
[1739869466066,3.769425,95477.0,95476.0,0.0063402]
[1739869466246,3.610453,95477.0,95476.0,0.0063402]
[1739869466425,6.252665,95477.0,95476.0,0.0063402]
[1739869466635,5.808676,95477.0,95476.0,0.0063402]
[1739869466846,5.329675,95477.0,95476.0,0.0063402]
[1739869467047,4.80345507,95477.0,95476.0,0.0063402]
[1739869467246,4.60115907,95477.0,95476.0,0.0063402]
[1739869467608,2.25935707,95477.0,95476.0,0.0063402]
[1739869467760,1.17128507,95477.0,95476.0,0.0063402]
[1739869468800,0.16641307,95477.0,95476.0,0.0826402]
[1739869469013,0.12104159,95490.0,95476.0,0.0826402]
[1739869469014,0.12104159,95490.0,95476.0,0.1281402]
[1739869469220,0.78676,95489.0,95476.0,0.13643822]
[1739869469426,0.248835,95488.0,95476.0,0.1281402]
[1739869469629,0.12104159,95490.0,95476.0,0.1281402]
[1739869469867,0.623444,95489.0,95476.0,0.1251402]
[1739869470066,0.375425,95488.0,95477.0,0.09543648]
[1739869470279,0.157089,95487.0,95477.0,0.09543648]
[1739869470476,0.209452,95487.0,95477.0,0.09543648]
[1739869470684,0.12104159,95490.0,95477.0,0.09543648]
[1739869470885,0.157094,95485.0,95477.0,0.09543648]
[1739869471113,0.157091,95486.0,95478.0,0.06278413]
[1739869471296,0.157089,95487.0,95478.0,0.06278413]
[1739869471495,0.12104159,95490.0,95478.0,0.06278413]
[1739869471713,0.157096,95483.0,95478.0,0.06278413]
[1739869472092,0.12104159,95490.0,95478.0,0.06278413]
[1739869472295,0.12104159,95490.0,95479.0,0.0807668]
[1739869472296,0.683001,95489.0,95479.0,0.0807668]
[1739869472496,0.157097,95482.0,95477.0,0.003]
[1739869472696,0.209458,95485.0,95478.0,0.003]
[1739869472879,0.157101,95480.0,95478.0,0.003]
[1739869473081,0.157098,95482.0,95478.0,0.003]
[1739869473262,0.157098,95482.0,95478.0,0.007]
[1739869473667,0.157097,95483.0,95478.0,0.007]
[1739869473875,0.634102,95482.0,95478.0,0.003]
[1739869474104,0.634102,95482.0,95478.0,0.009]
[1739869474546,0.791199,95482.0,95476.0,0.1221402]
[1739869474760,0.157097,95482.0,95478.0,0.005]
[1739869475463,0.157096,95483.0,95478.0,0.01]
[1739869475701,0.634102,95482.0,95478.0,0.01]
[1739869475911,0.157098,95482.0,95478.0,0.01]
[1739869476377,0.157099,95482.0,95478.0,0.005]
[1739869476552,0.209448,95489.0,95478.0,0.005]
[1739869476757,0.157098,95482.0,95478.0,0.005]
[1739869477185,0.12104159,95490.0,95478.0,0.005]
[1739869477432,0.157097,95482.0,95478.0,0.011]
[1739869477801,0.157093,95485.0,95478.0,0.011]
[1739869478041,1.173318,95484.0,95476.0,0.1221402]
[1739869478246,1.686778,95489.0,95478.0,0.006]
[1739869478424,0.546973,95483.0,95478.0,0.003]
[1739869478632,0.468791,95482.0,95478.0,0.003]
[1739869478828,0.157099,95481.0,95478.0,0.005]
[1739869479039,0.209462,95483.0,95478.0,0.005]
[1739869479246,0.970204,95482.0,95478.0,0.003]
[1739869479447,1.127303,95482.0,95478.0,0.003]
[1739869479653,1.081158,95481.0,95476.0,0.1221402]
[1739869479854,1.26481,95482.0,95478.0,0.001]
[1739869480066,0.157098,95482.0,95478.0,0.001]
[1739869480270,0.96111,95481.0,95478.0,0.001]
[1739869480443,0.769826,95481.0,95478.0,0.002]
[1739869480649,0.12104159,95490.0,95478.0,0.006]
[1739869480854,0.178304,95489.0,95478.0,0.004]
[1739869481054,0.157093,95485.0,95478.0,0.004]
[1739869481263,0.679587,95484.0,95478.0,0.004]
[1739869481463,0.157097,95483.0,95478.0,0.005]
[1739869481668,0.157096,95483.0,95478.0,0.01]
[1739869481964,0.157098,95482.0,95478.0,0.005]
[1739869482165,0.157096,95483.0,95478.0,0.005]
[1739869482371,0.209448,95489.0,95478.0,0.009]
[1739869482615,0.20945,95488.0,95478.0,0.009]
[1739869482767,0.157097,95482.0,95478.0,0.004]
[1739869483175,0.209459,95484.0,95478.0,0.007]
[1739869483380,0.157097,95482.0,95478.0,0.007]
[1739869483559,0.157097,95482.0,95478.0,0.003]
[1739869483790,0.157097,95482.0,95476.0,0.1221402]
[1739869483989,0.157097,95482.0,95478.0,0.008]
[1739869484201,0.157097,95482.0,95478.0,0.004]
[1739869484388,0.157097,95483.0,95478.0,0.008]
[1739869485010,0.209458,95485.0,95478.0,0.008]
[1739869485230,0.28272,95484.0,95479.0,0.04564872]
[1739869485441,0.316272,95489.0,95479.0,0.04564872]
[1739869485644,0.12104159,95490.0,95478.0,0.008]
[1739869485871,0.157091,95486.0,95478.0,0.008]
[1739869486073,0.157091,95486.0,95478.0,0.004]
[1739869486704,0.157094,95485.0,95478.0,0.004]
[1739869486882,0.12104159,95490.0,95476.0,0.1221402]
[1739869487079,0.157093,95485.0,95477.0,0.04484872]
[1739869487320,0.157093,95485.0,95478.0,0.006]
[1739869487526,0.157092,95486.0,95478.0,0.006]
[1739869487754,0.157092,95486.0,95478.0,0.003]
[1739869488104,0.414794,95485.0,95478.0,0.003]
[1739869488435,0.948702,95484.0,95478.0,0.003]
[1739869488630,0.948702,95484.0,95478.0,0.08510802]
[1739869489075,0.948702,95484.0,95478.0,0.08810802]
[1739869489464,0.12104159,95490.0,95478.0,0.08510802]
[1739869489676,0.157091,95486.0,95478.0,0.08510802]
[1739869489873,0.455243,95485.0,95478.0,0.08810802]
[1739869490081,0.470604,95487.0,95478.0,0.08810802]
[1739869490301,0.627693,95487.0,95478.0,0.08210802]
[1739869490528,0.357734,95486.0,95478.0,0.165103]
[1739869490740,0.215472,95485.0,95478.0,0.004]
[1739869490953,0.385307,95486.0,95478.0,0.004]
[1739869491160,0.273659,95485.0,95478.0,0.004]
[1739869491387,0.157089,95487.0,95477.0,0.157105]
[1739869491606,0.511387,95486.0,95477.0,0.157105]
[1739869491812,0.603355,95485.0,95478.0,0.007]
[1739869491947,0.603355,95485.0,95478.0,0.003]
[1739869492900,0.025,95522.0,95481.0,0.0839177]
[1739869493098,0.031486,95531.0,95492.0,0.3649987]
[1739869493310,0.12104159,95530.0,95492.0,0.46750235]
[1739869493515,0.02116256,95522.0,95492.0,0.46750235]
[1739869493760,0.209378,95521.0,95492.0,0.46750235]
[1739869493961,0.157037,95519.0,95492.0,0.46750235]
[1739869494178,0.157015,95532.0,95492.0,0.49050235]
[1739869494365,0.01675708,95522.0,95502.0,0.284064]
[1739869494566,0.01675708,95522.0,95502.0,0.47048535]
[1739869495404,0.01675708,95522.0,95502.0,0.46056535]
[1739869495831,0.01675708,95522.0,95502.0,0.46840516]
[1739869496127,0.01675708,95522.0,95502.0,0.57905985]
[1739869496876,0.01675708,95522.0,95502.0,0.58605985]
[1739869497085,0.17378908,95522.0,95502.0,0.58605985]
[1739869497291,0.157033,95521.0,95502.0,0.58605985]
[1739869497699,0.01675708,95522.0,95502.0,1.12370881]
[1739869497915,0.01675708,95522.0,95502.0,1.11670881]
[1739869498133,0.12104159,95520.0,95502.0,0.68063981]
[1739869498551,0.209393,95515.0,95502.0,0.83770381]
[1739869498756,0.02123814,95510.0,95502.0,0.829864]
[1739869499360,0.02123814,95510.0,95502.0,0.822864]
[1739869499568,0.02123814,95510.0,95502.0,0.829864]
[1739869499712,0.33042359,95520.0,95502.0,0.77530365]
[1739869499926,0.00010657,95516.0,95502.0,0.78230365]
[1739869500125,0.157049,95512.0,95502.0,0.76830365]
[1739869500357,0.157059,95506.0,95502.0,0.78230365]
[1739869500558,0.157059,95506.0,95502.0,0.6798]
[1739869500813,0.157053,95509.0,95502.0,0.6728]
[1739869500980,0.666171,95508.0,95502.0,0.6658]
[1739869501189,0.157054,95508.0,95502.0,0.6708]
[1739869501383,0.209399,95512.0,95502.0,0.6708]
[1739869501384,0.678762,95507.0,95502.0,0.6708]
[1739869501738,1.520521,95509.0,95502.0,0.6708]
[1739869501921,2.03247,95511.0,95502.0,0.6708]
[1739869502144,0.717179,95508.0,95502.0,0.6708]
[1739869502322,0.718566,95509.0,95502.0,0.77330365]
[1739869502535,1.559234,95509.0,95502.0,0.77330365]
[1739869502755,1.559234,95509.0,95502.0,0.77530365]
[1739869502970,1.25699,95509.0,95502.0,0.6798]
[1739869503176,0.00010657,95516.0,95502.0,0.6728]
[1739869503385,0.209395,95514.0,95502.0,0.6798]
[1739869503597,0.157052,95510.0,95502.0,0.46000695]
[1739869503804,0.69104,95509.0,95502.0,0.46000695]
[1739869503974,0.15705,95511.0,95502.0,0.47987107]
[1739869504181,0.00010657,95516.0,95502.0,0.47287107]
[1739869504396,0.157046,95514.0,95502.0,0.47287107]
[1739869504591,0.157045,95514.0,95502.0,0.47787107]
[1739869504940,0.157048,95512.0,95502.0,0.48287107]
[1739869505148,0.209391,95515.0,95502.0,0.48287107]
[1739869505371,0.380487,95514.0,95502.0,0.48287107]
[1739869505573,0.20949657,95516.0,95503.0,0.05358543]
[1739869505704,0.373642,95515.0,95503.0,0.05358543]
[1739869505904,0.157047,95513.0,95503.0,0.05358543]
[1739869506113,0.00010657,95516.0,95503.0,0.05358543]
[1739869506296,0.00010657,95516.0,95505.0,0.209413]
[1739869506520,0.00010657,95516.0,95504.0,0.30057835]
[1739869506728,0.00010657,95516.0,95505.0,0.157059]
[1739869506930,0.00010657,95516.0,95506.0,0.10250365]
[1739869507156,0.00010657,95516.0,95515.0,0.0774]
[1739869507366,0.00010657,95516.0,95515.0,0.234443]
[1739869507683,0.00010657,95516.0,95515.0,0.33255971]
[1739869507907,0.00010657,95516.0,95515.0,0.17551671]
[1739869509158,0.00027687,95516.0,95515.0,0.17551671]
[1739869509338,0.00027687,95516.0,95515.0,0.1257]
[1739869509576,0.00027687,95516.0,95515.0,0.45170695]
[1739869509788,0.00027687,95516.0,95515.0,0.33200695]
[1739869509990,0.00027687,95516.0,95515.0,0.33700695]
[1739869510222,1.36092987,95516.0,95515.0,0.32600695]
[1739869510422,1.52710387,95516.0,95515.0,0.32600695]
[1739869510595,0.40364487,95516.0,95515.0,0.33200695]
[1739869510830,0.40364487,95516.0,95515.0,0.32900695]
[1739869511030,0.00027687,95516.0,95515.0,0.32900695]
[1739869511230,0.73948987,95516.0,95515.0,0.32800695]
[1739869511436,0.73948987,95516.0,95515.0,0.33000695]
[1739869512471,0.73948987,95516.0,95515.0,0.32800695]
[1739869512678,0.73948987,95516.0,95515.0,0.33100695]
[1739869513066,0.73948987,95516.0,95515.0,0.32800695]
[1739869513274,0.73948987,95516.0,95515.0,0.33000695]
[1739869513489,0.58244887,95516.0,95515.0,0.32800695]
[1739869513686,0.45728987,95516.0,95515.0,0.32900695]
[1739869513901,0.00027687,95516.0,95515.0,0.33100695]
[1739869514120,0.00027687,95516.0,95515.0,0.32600695]
[1739869514333,0.00027687,95516.0,95515.0,0.48304995]
[1739869514592,0.00027687,95516.0,95515.0,0.48504995]
[1739869514787,0.00027687,95516.0,95515.0,0.32800695]
[1739869515189,0.40954787,95516.0,95515.0,0.32800695]
[1739869515409,0.39536387,95516.0,95515.0,0.32800695]
[1739869515620,0.39536387,95516.0,95515.0,0.32900695]
[1739869515771,0.39536387,95516.0,95515.0,0.32600695]
[1739869516176,0.55240487,95516.0,95515.0,0.33100695]
[1739869516386,0.15731787,95516.0,95515.0,0.33100695]
[1739869516734,0.15731787,95516.0,95515.0,0.32600695]
[1739869516951,2.35717087,95516.0,95515.0,0.32900695]
[1739869517104,3.64355087,95516.0,95515.0,0.32900695]
[1739869517304,0.37560987,95516.0,95515.0,0.32900695]
[1739869517504,0.32137187,95516.0,95515.0,0.32900695]
[1739869517729,0.32137187,95516.0,95515.0,0.33000695]
[1739869517931,0.47841287,95516.0,95515.0,0.33000695]
[1739869518312,0.47841287,95516.0,95515.0,0.32900695]
[1739869518736,0.47841287,95516.0,95515.0,0.32800695]
[1739869518938,0.30407587,95516.0,95515.0,0.32800695]
[1739869519136,0.30407587,95516.0,95515.0,0.32900695]
[1739869519137,1.70898387,95516.0,95515.0,0.32900695]
[1739869519486,1.70898387,95516.0,95515.0,0.32800695]
[1739869519487,1.39584387,95516.0,95515.0,0.32800695]
[1739869519694,0.91371287,95516.0,95515.0,0.32900695]
[1739869519898,1.02865287,95516.0,95515.0,0.32900695]
[1739869520083,0.15731787,95516.0,95515.0,0.32900695]
[1739869520327,0.15731787,95516.0,95515.0,0.32700695]
[1739869520531,0.15731787,95516.0,95515.0,0.32800695]
[1739869520715,1.06093187,95516.0,95515.0,0.32800695]
[1739869520849,1.21797287,95516.0,95515.0,0.32800695]
[1739869521281,1.21797287,95516.0,95515.0,0.002]
[1739869521526,1.21797287,95516.0,95515.0,0.001]
[1739869521766,1.21797287,95516.0,95515.0,0.0003406]
[1739869521999,1.21797287,95516.0,95515.0,0.0033406]
[1739869522878,0.87170287,95516.0,95515.0,0.0033406]
[1739869523097,0.14707187,95516.0,95515.0,0.0033406]
[1739869523296,0.30411287,95516.0,95515.0,0.0033406]
[1739869523721,0.30411287,95516.0,95515.0,0.0023406]
[1739869523919,0.30411287,95516.0,95515.0,0.0033406]
[1739869524128,0.00027687,95516.0,95515.0,0.0033406]
[1739869524618,0.21385087,95516.0,95515.0,0.0023406]
[1739869525043,0.00027687,95516.0,95515.0,0.0023406]
[1739869525250,0.00027687,95516.0,95515.0,0.0033406]
[1739869525529,0.00027687,95516.0,95515.0,0.0855406]
[1739869525828,0.00027687,95516.0,95515.0,0.0895406]
[1739869526057,0.00027687,95516.0,95515.0,0.0825406]
[1739869526460,0.00027687,95516.0,95515.0,0.0875406]
[1739869526639,0.00027687,95516.0,95515.0,0.0915406]
[1739869527095,0.00027687,95516.0,95515.0,0.0875406]
[1739869527499,0.00027687,95516.0,95515.0,0.0925406]
[1739869528039,0.00027687,95516.0,95515.0,0.0825406]
[1739869528245,0.00027687,95516.0,95515.0,0.0855406]
[1739869528449,0.00027687,95516.0,95515.0,0.0885406]
[1739869528658,0.00027687,95516.0,95515.0,0.0855406]
[1739869528861,0.00027687,95516.0,95515.0,0.0905406]
[1739869529696,0.00027687,95516.0,95515.0,0.0825406]
[1739869529911,0.00027687,95516.0,95515.0,0.2445836]
[1739869530448,0.00027687,95516.0,95515.0,0.0825406]
[1739869530665,0.00027687,95516.0,95515.0,0.0875406]
[1739869530856,0.00027687,95516.0,95515.0,0.2445836]
[1739869531094,0.00027687,95516.0,95515.0,0.27404196]
[1739869531384,0.00027687,95516.0,95515.0,0.0925406]
[1739869532228,0.00027687,95516.0,95515.0,0.0875406]
[1739869532435,0.00027687,95516.0,95515.0,0.0935406]
[1739869532632,0.00027687,95516.0,95515.0,0.0885406]
[1739869533564,0.00027687,95516.0,95515.0,0.0825406]
[1739869533760,0.00027687,95516.0,95515.0,0.0885406]
[1739869534393,0.00027687,95516.0,95515.0,0.0855406]
[1739869534910,0.00027687,95516.0,95515.0,0.28373836]
[1739869535109,0.00027687,95516.0,95515.0,0.12669536]
[1739869535316,0.00027687,95516.0,95515.0,0.13169536]
[1739869535533,0.00027687,95516.0,95515.0,0.28373836]
[1739869535742,0.00027687,95516.0,95515.0,0.43454201]
[1739869535954,0.00027687,95516.0,95515.0,0.78654896]
[1739869536167,0.00027687,95516.0,95515.0,1.34137372]
[1739869536370,0.00027687,95516.0,95515.0,1.33837372]
[1739869536793,0.00027687,95516.0,95515.0,1.34337372]
[1739869537223,0.00027687,95516.0,95515.0,1.33537372]
[1739869537436,0.00027687,95516.0,95515.0,1.34837372]
[1739869537641,0.00027687,95516.0,95515.0,1.34237372]
[1739869537858,0.00027687,95516.0,95515.0,1.35807542]
[1739869538047,0.00027687,95516.0,95515.0,1.36507542]
[1739869538267,0.00027687,95516.0,95515.0,1.39442634]
[1739869538880,0.0001701,95558.0,95516.0,0.173]
[1739869539091,0.00061275,95533.0,95532.0,0.288215]
[1739869539316,0.00061275,95533.0,95532.0,0.39071865]
[1739869540134,0.00061275,95533.0,95532.0,0.7397256]
[1739869540769,0.209279,95566.0,95537.0,0.209342]
[1739869540976,0.156971,95559.0,95550.0,0.0817]
[1739869541205,0.931603,95558.0,95550.0,0.0817]
[1739869541409,0.639069,95557.0,95550.0,0.238685]
[1739869541593,0.797656,95557.0,95550.0,0.0817]
[1739869542004,0.797656,95557.0,95551.0,0.0291024]
[1739869542217,0.366673,95556.0,95550.0,0.238685]
[1739869542422,0.64246,95557.0,95550.0,0.238685]
[1739869542570,0.66442,95557.0,95551.0,0.0493]
[1739869542771,0.01551463,95558.0,95551.0,0.0493]
[1739869542979,0.724479,95557.0,95551.0,0.0493]
[1739869543157,0.940476,95560.0,95551.0,0.0493]
[1739869543557,0.95590758,95560.0,95552.0,0.0497301]
[1739869543768,0.635104,95559.0,95551.0,0.0533]
[1739869543978,0.635104,95559.0,95554.0,0.156979]
[1739869544227,0.935919,95561.0,95553.0,0.209307]
[1739869544434,1.058194,95561.0,95551.0,0.0523]
[1739869544635,1.058194,95561.0,95551.0,0.0563]
[1739869544811,0.764467,95560.0,95551.0,0.0533]
[1739869545017,0.15701232,95562.0,95554.0,0.004]
[1739869545018,1.057307,95561.0,95554.0,0.004]
[1739869545214,0.0001703,95557.0,95554.0,0.004]
[1739869545444,0.518045,95556.0,95554.0,0.004]
[1739869545669,0.156977,95555.0,95554.0,0.004]
[1739869545848,2.95341,95555.0,95554.0,0.004]
[1739869546039,2.857044,95555.0,95554.0,0.004]
[1739869546456,0.156979,95554.0,95553.0,0.003]
[1739869546661,4.864172,95554.0,95553.0,0.003]
[1739869546872,0.156982,95552.0,95551.0,0.32900695]
[1739869547070,4.101668,95552.0,95551.0,0.32600695]
[1739869547272,4.393323,95552.0,95551.0,0.32600695]
[1739869547595,4.415087,95552.0,95551.0,0.32600695]
[1739869547961,4.415087,95552.0,95551.0,0.32900695]
[1739869548545,4.43148656,95552.0,95551.0,0.32900695]
[1739869549546,4.43148656,95552.0,95551.0,0.32600695]
[1739869549746,0.157015,95532.0,95531.0,0.1301]
[1739869549948,0.365809,95532.0,95531.0,0.1301]
[1739869550126,0.12104159,95550.0,95531.0,0.1301]
[1739869550127,0.156998,95543.0,95531.0,0.1301]
[1739869550348,0.765651,95542.0,95531.0,0.1301]
[1739869550694,0.157001,95541.0,95531.0,0.1301]
[1739869550898,1.507895,95543.0,95531.0,0.1371]
[1739869551103,2.179212,95545.0,95531.0,0.1371]
[1739869551274,0.157009,95536.0,95531.0,0.1301]
[1739869551478,0.375567,95535.0,95531.0,0.1301]
[1739869551676,0.692863,95535.0,95531.0,0.1301]
[1739869551973,0.209338,95539.0,95520.0,0.1275]
[1739869552208,3.327371,95538.0,95521.0,0.0782]
[1739869552417,0.317217,95537.0,95523.0,0.0782]
[1739869552632,0.71935,95538.0,95531.0,0.006]
[1739869552831,0.157007,95537.0,95531.0,0.012]
[1739869553104,1.671754,95536.0,95523.0,0.235228]
[1739869553330,1.567394,95535.0,95523.0,0.23523]
[1739869553507,1.643677,95536.0,95524.0,0.157028]
[1739869553722,1.160774,95536.0,95524.0,0.157028]
[1739869554018,0.981458,95535.0,95531.0,0.007]
[1739869554262,1.306869,95537.0,95531.0,0.007]
[1739869554441,1.018158,95536.0,95531.0,0.007]
[1739869554591,1.221508,95536.0,95531.0,0.007]
[1739869555194,1.868011,95538.0,95525.0,0.48303295]
[1739869555396,1.007674,95537.0,95525.0,0.48303295]
[1739869555616,1.164681,95537.0,95525.0,0.48303295]
[1739869555820,1.109272,95536.0,95525.0,0.32600695]
[1739869556396,0.945301,95535.0,95525.0,0.33300695]
[1739869556599,0.690937,95534.0,95525.0,0.49703295]
[1739869556797,0.690937,95534.0,95525.0,0.48303295]
[1739869557045,0.996595,95537.0,95525.0,0.32600695]
[1739869557249,1.75119,95538.0,95525.0,0.34000695]
[1739869557457,1.75119,95538.0,95526.0,0.20489035]
[1739869557661,0.01640196,95542.0,95532.0,0.157014]
[1739869557861,0.01640196,95542.0,95533.0,0.0823]
[1739869558253,0.01640196,95542.0,95533.0,0.291651]
[1739869558458,0.01640196,95542.0,95534.0,0.15701]
[1739869558668,0.01640196,95542.0,95533.0,0.239313]
[1739869559296,0.00013269,95546.0,95542.0,0.0824]
[1739869560534,0.01639985,95555.0,95542.0,0.0874]
[1739869560750,0.156991,95547.0,95542.0,0.0874]
[1739869560951,0.156987,95549.0,95542.0,0.0874]
[1739869561158,0.549669,95548.0,95543.0,0.0244405]
[1739869561362,0.156993,95546.0,95543.0,0.0244405]
[1739869561568,0.817622,95545.0,95542.0,0.0874]
[1739869561742,0.156997,95543.0,95542.0,0.0874]
[1739869561973,2.392087,95543.0,95542.0,0.005]
[1739869562154,2.333455,95543.0,95542.0,0.01]
[1739869562355,2.265719,95543.0,95542.0,0.01]
[1739869562556,2.108722,95543.0,95537.0,0.077]
[1739869562754,1.171675,95544.0,95542.0,0.004]
[1739869562929,1.928885,95544.0,95542.0,0.005]
[1739869563146,2.021014,95543.0,95542.0,0.005]
[1739869563337,1.916607,95543.0,95542.0,0.006]
[1739869563684,0.156982,95553.0,95542.0,0.006]
[1739869563888,1.474493,95552.0,95542.0,0.012]
[1739869564163,0.728441,95551.0,95542.0,0.006]
[1739869564387,0.02080655,95556.0,95543.0,0.0798]
[1739869564388,0.511143,95550.0,95543.0,0.0798]
[1739869564593,0.156982,95553.0,95543.0,0.0798]
[1739869564809,0.540312,95552.0,95543.0,0.0798]
[1739869565008,1.42728,95553.0,95543.0,0.0798]
[1739869565239,0.20931,95552.0,95543.0,0.0798]
[1739869565445,2.114453,95555.0,95543.0,0.0798]
[1739869565551,0.02080655,95556.0,95543.0,0.0798]
[1739869565552,0.156989,95549.0,95543.0,0.0798]
[1739869565774,0.1959,95548.0,95543.0,0.0798]
[1739869566138,0.15698,95554.0,95544.0,0.0481]
[1739869566341,2.14419,95555.0,95544.0,0.0481]
[1739869566342,1.033997,95553.0,95544.0,0.0481]
[1739869566667,0.03720593,95556.0,95544.0,0.0481]
[1739869566668,1.135121,95552.0,95544.0,0.0481]
[1739869566794,0.595805,95551.0,95544.0,0.0481]
[1739869567024,0.616204,95551.0,95544.0,0.0481]
[1739869567244,1.306042,95555.0,95544.0,0.205095]
[1739869567468,0.156979,95554.0,95544.0,0.205095]
[1739869567677,1.189897,95553.0,95545.0,0.156992]
[1739869567975,0.74831,95552.0,95545.0,0.156992]
[1739869568108,0.324074,95555.0,95547.0,0.0832]
[1739869568307,0.324074,95555.0,95552.0,0.156981]
[1739869568308,0.226044,95555.0,95552.0,0.156981]
[1739869568502,0.238044,95556.0,95548.0,0.292518]
[1739869568766,0.238147,95556.0,95548.0,0.1501625]
[1739869569197,0.238147,95556.0,95552.0,0.156981]
[1739869569397,0.238147,95556.0,95550.0,0.209313]
[1739869569516,0.238147,95556.0,95555.0,0.156977]
[1739869569721,0.238147,95556.0,95549.0,0.00784615]
[1739869569998,0.0001703,95555.0,95553.0,0.156979]
[1739869570311,0.227085,95554.0,95553.0,0.156979]
[1739869570488,0.227085,95554.0,95553.0,0.233579]
[1739869570902,0.189705,95554.0,95553.0,0.233579]
[1739869571461,0.189705,95554.0,95553.0,0.24742515]
[1739869572053,0.189705,95554.0,95553.0,0.3499288]
[1739869572624,0.189705,95554.0,95553.0,0.3439288]
[1739869572829,0.189705,95554.0,95553.0,0.33608265]
[1739869573009,0.189705,95554.0,95553.0,0.34308265]
[1739869573208,0.0001703,95555.0,95553.0,0.18610365]
[1739869573404,0.185512,95554.0,95553.0,0.18610365]
[1739869574119,0.185512,95554.0,95553.0,0.34308365]
[1739869574341,0.185512,95554.0,95553.0,0.23358]
[1739869574536,0.185512,95554.0,95553.0,0.24758]
[1739869575093,0.161992,95554.0,95553.0,0.24758]
[1739869575505,0.161992,95554.0,95553.0,0.0906]
[1739869575775,0.161992,95554.0,95553.0,0.0766]
[1739869576182,0.161992,95554.0,95553.0,0.24758]
[1739869576773,0.161992,95554.0,95553.0,0.24058]
[1739869576976,0.161992,95554.0,95553.0,0.0836]
[1739869577181,0.161992,95554.0,95553.0,0.0906]
[1739869577502,0.161992,95554.0,95553.0,0.0766]
[1739869577658,0.15699,95547.0,95546.0,0.40610695]
[1739869577869,0.209318,95549.0,95546.0,0.32600695]
[1739869578066,0.829541,95548.0,95546.0,0.32600695]
[1739869578433,0.156986,95550.0,95546.0,0.32600695]
[1739869578637,0.845816,95549.0,95546.0,0.32600695]
[1739869578838,0.770986,95549.0,95546.0,0.32600695]
[1739869578969,1.440361,95550.0,95546.0,0.32600695]
[1739869579173,0.870986,95549.0,95546.0,0.32600695]
[1739869579390,3.336469,95554.0,95546.0,0.32600695]
[1739869579613,0.15699,95547.0,95546.0,0.32600695]
[1739869579964,3.366787,95547.0,95546.0,0.33300695]
[1739869580164,3.366787,95547.0,95546.0,0.32600695]
[1739869580165,3.800074,95547.0,95546.0,0.32600695]
[1739869580295,3.480347,95547.0,95546.0,0.32600695]
[1739869580495,3.325526,95547.0,95546.0,0.33000695]
[1739869580995,1.722448,95547.0,95546.0,0.33000695]
[1739869581198,1.47556,95547.0,95546.0,0.33500695]
[1739869581397,1.793872,95554.0,95546.0,0.33500695]
[1739869581624,1.54152,95553.0,95546.0,0.33500695]
[1739869581831,1.410633,95552.0,95546.0,0.33500695]
[1739869582053,1.477753,95553.0,95546.0,0.33100695]
[1739869582247,1.450676,95554.0,95546.0,0.33100695]
[1739869582447,0.485114,95553.0,95546.0,0.33100695]
[1739869582662,0.817627,95554.0,95546.0,0.4008947]
[1739869582870,1.127172,95553.0,95546.0,0.3958947]
[1739869583093,1.728219,95552.0,95546.0,0.3988947]
[1739869583296,1.042378,95551.0,95547.0,0.08937633]
[1739869583508,0.0001703,95555.0,95547.0,0.08937633]
[1739869583509,1.059712,95550.0,95547.0,0.08937633]
[1739869583823,0.698288,95549.0,95547.0,0.08937633]
[1739869584032,0.401274,95549.0,95546.0,0.32800695]
[1739869584177,0.549371,95548.0,95546.0,0.32800695]
[1739869584362,0.156979,95554.0,95546.0,0.33200695]
[1739869584581,0.156981,95553.0,95547.0,0.06175446]
[1739869584796,1.204064,95552.0,95547.0,0.06175446]
[1739869585114,0.0001703,95547.0,95546.0,0.33200695]
[1739869585285,0.5413733,95547.0,95546.0,0.33200695]
[1739869585488,0.6473253,95547.0,95546.0,0.32800695]
[1739869585653,0.5523933,95547.0,95546.0,0.32600695]
[1739869585856,0.4825933,95547.0,95546.0,0.32600695]
[1739869586264,0.0001703,95547.0,95546.0,0.32600695]
[1739869586464,0.0001703,95547.0,95546.0,0.33100695]
[1739869587144,0.0001703,95547.0,95546.0,0.33600695]
[1739869587560,0.5285743,95547.0,95546.0,0.33600695]
[1739869587736,0.1571603,95547.0,95546.0,0.33600695]
[1739869588180,2.6426383,95547.0,95546.0,0.33600695]
[1739869588372,2.4994763,95547.0,95546.0,0.33600695]
[1739869589733,2.4658783,95547.0,95546.0,0.01]
[1739869591972,2.48227854,95547.0,95546.0,0.01]